bitfinex/quotes_ETHUSD_20220202
["timestamp","ask_amount","ask_price","bid_price","bid_amount"]
[1643789304805,4.03099478,2754.6,2754.5,0.1814]
[1643789305002,4.17667978,2754.6,2754.5,0.1814]
[1643789305698,4.17667978,2754.6,2754.0,0.52838138]
[1643789305699,0.37914384,2754.2,2754.0,0.52838138]
[1643789305899,2.51981528,2754.1,2753.6,0.1814]
[1643789306102,2.66550028,2754.1,2753.6,0.1814]
[1643789306302,1.0,2754.0,2753.6,0.1814]
[1643789306505,0.523,2753.9,2753.6,0.1814]
[1643789306752,2.5325238,2753.9,2753.6,0.1814]
[1643789307150,1.0,2753.8,2753.2,0.45978138]
[1643789307459,0.523,2753.7,2753.2,1.05978138]
[1643789307649,0.523,2753.7,2753.3,0.32662633]
[1643789308052,0.523,2753.7,2753.4,0.27838138]
[1643789308451,0.523,2753.7,2753.5,0.1814]
[1643789309649,0.523,2753.7,2753.5,0.27838138]
[1643789312817,0.523,2753.7,2753.4,0.1814]
[1643789313813,0.523,2753.7,2753.5,0.27838138]
[1643789314466,0.487465,2753.7,2753.5,0.27838138]
[1643789315768,0.523,2754.0,2753.5,0.30229132]
[1643789315964,0.145685,2754.5,2753.9,0.27838138]
[1643789315965,0.523,2754.4,2753.9,0.27838138]
[1643789316164,4.72161862,2754.0,2753.6,0.1814]
[1643789316363,4.72161862,2754.0,2753.8,0.85410835]
[1643789316562,4.72161862,2754.0,2753.8,1.15410835]
[1643789316965,4.72161862,2754.0,2753.8,0.3]
[1643789317166,4.72161862,2754.0,2753.9,0.33824029]
[1643789318215,5.72161862,2754.0,2753.9,0.33824029]
[1643789318414,4.72161862,2754.0,2753.9,0.33824029]
[1643789322056,4.72161862,2754.0,2753.9,0.51964029]
[1643789323261,0.1814,2754.7,2754.0,6.3]
[1643789323467,0.327085,2755.0,2754.1,1.99648]
[1643789323658,0.327085,2755.0,2754.2,0.02631654]
[1643789323659,0.145685,2755.0,2754.2,0.02631654]
[1643789323862,0.145685,2755.0,2754.3,0.1814]
[1643789324057,0.145685,2755.0,2754.5,0.00861087]
[1643789324258,0.145685,2755.0,2754.5,1.09278999]
[1643789324459,0.145685,2755.0,2754.9,0.32185522]
[1643789326000,0.145685,2755.3,2754.9,0.32185522]
[1643789326199,0.1814,2755.2,2754.9,0.32185522]
[1643789328206,0.1814,2755.2,2754.4,0.1814]
[1643789328412,0.145685,2755.1,2754.4,0.1814]
[1643789328603,2.24048256,2755.0,2754.4,0.1814]
[1643789328803,4.02113021,2754.9,2754.4,0.1814]
[1643789329004,0.7044,2754.8,2754.4,0.1814]
[1643789329252,2.02417716,2754.7,2754.4,0.1814]
[1643789329451,3.895685,2754.5,2754.4,0.1814]
[1643789329651,3.895685,2754.5,2754.1,0.43531166]
[1643789329652,6.44401941,2754.5,2754.2,0.145253]
[1643789329853,1.0,2754.4,2754.2,0.145253]
[1643789330056,1.95475819,2754.3,2753.8,0.1814]
[1643789330255,0.145685,2754.2,2753.8,0.1814]
[1643789330454,0.668685,2754.2,2753.7,0.90778]
[1643789330854,0.668685,2754.2,2753.6,0.1814]
[1643789330855,1.668685,2754.2,2753.6,0.1814]
[1643789331062,0.523,2754.2,2753.9,0.40216144]
[1643789331256,0.523,2754.5,2753.9,0.40216144]
[1643789331456,0.1814,2754.4,2753.9,0.40216144]
[1643789331654,2.20012734,2754.4,2753.9,0.40216144]
[1643789332254,1.327085,2754.4,2753.9,0.40216144]
[1643789332456,0.327085,2754.4,2753.9,0.40216144]
[1643789332656,0.29155,2754.4,2753.9,0.40216144]
[1643789332916,0.145865,2754.4,2753.9,0.40216144]
[1643789333623,0.7044,2754.8,2754.0,0.03552]
[1643789333821,1.2488,2755.4,2754.0,0.03552]
[1643789333822,0.1814,2754.9,2754.7,0.76678095]
[1643789334022,0.7044,2755.2,2754.7,0.76678095]
[1643789334220,0.1814,2755.2,2754.7,1.06678095]
[1643789334617,0.1814,2755.2,2754.7,0.3]
[1643789335017,0.1814,2755.2,2754.9,0.33740368]
[1643789336657,0.1814,2755.2,2754.5,0.3]
[1643789337057,0.1814,2755.2,2754.4,0.03552]
[1643789337459,0.523,2755.1,2754.4,0.03552]
[1643789337863,3.61306677,2755.0,2754.6,0.38256136]
[1643789338061,0.327085,2755.0,2754.6,0.38256136]
[1643789338264,1.53603817,2754.9,2754.6,0.38256136]
[1643789338463,1.53603817,2754.9,2754.3,4.0791]
[1643789338659,2.29665704,2755.0,2754.3,0.1814]
[1643789338660,1.93839875,2754.8,2754.3,0.1814]
[1643789338867,3.44603236,2755.0,2754.3,0.1814]
[1643789339061,2.44603236,2755.0,2754.3,0.1814]
[1643789339260,1.53603874,2754.9,2753.9,0.1814]
[1643789339460,2.62497368,2754.8,2753.9,0.1814]
[1643789339962,2.62497368,2754.8,2754.0,0.95299553]
[1643789339963,2.53614489,2754.7,2754.0,0.95299553]
[1643789340161,0.668685,2754.8,2754.1,0.1814]
[1643789341104,0.668685,2754.8,2754.2,0.41985392]
[1643789341507,2.60495001,2754.8,2754.2,0.41985392]
[1643789341705,2.62695271,2754.8,2754.2,0.41985392]
[1643789341907,1.0,2754.7,2754.2,0.41985392]
[1643789342308,0.668685,2754.8,2754.2,0.41985392]
[1643789342508,1.5361585,2754.7,2754.2,0.41985392]
[1643789342909,0.523,2754.6,2754.2,0.41985392]
[1643789344157,0.668685,2754.6,2754.2,0.41985392]
[1643789344554,0.523,2754.6,2754.2,0.41985392]
[1643789347918,0.14649425,2754.8,2754.1,0.1814]
[1643789347919,0.14649425,2754.8,2754.7,0.39868466]
[1643789348117,0.14649425,2754.8,2754.1,0.1814]
[1643789348521,0.00080925,2754.8,2754.1,0.1814]
[1643789348719,0.00080925,2754.8,2754.1,0.20102197]
[1643789348922,0.00080925,2754.8,2754.2,0.90763]
[1643789349121,0.00080925,2754.8,2754.2,3.39913]
[1643789349325,1.53579594,2755.3,2754.3,0.3]
[1643789349519,0.1814,2755.5,2755.3,0.75292829]
[1643789349725,0.1814,2755.5,2754.5,0.90749]
[1643789349726,0.1814,2755.5,2755.4,0.3]
[1643789349923,0.00082721,2755.6,2755.4,0.3]
[1643789350123,0.00082721,2755.6,2755.1,0.90733]
[1643789350320,0.00082721,2755.6,2755.2,0.3]
[1643789350921,0.00082721,2755.6,2755.3,2.09105858]
[1643789351126,0.00082721,2755.6,2755.4,0.19342356]
[1643789351320,1.50077847,2756.0,2755.5,0.90713]
[1643789351520,2.1814,2756.4,2755.5,0.90713]
[1643789351776,0.1814,2756.4,2755.5,1.20713]
[1643789351963,0.1814,2756.5,2755.5,1.21615286]
[1643789352158,0.1814,2756.6,2755.7,1.81423]
[1643789352357,1.01266869,2756.6,2755.7,1.81423]
[1643789352560,1.33798835,2755.6,2755.5,0.3]
[1643789352761,3.46640953,2756.3,2755.5,0.3]
[1643789352962,1.0,2756.2,2755.4,0.145192]
[1643789353160,2.39655679,2756.1,2755.4,0.145192]
[1643789353356,2.39655679,2756.1,2755.1,1.4083]
[1643789353558,0.3451517,2756.0,2755.1,1.4083]
[1643789353757,2.04290296,2755.9,2755.2,1.81453]
[1643789354157,2.8745437,2756.1,2755.2,2.72183]
[1643789354356,2.8745437,2756.1,2755.2,3.02183]
[1643789355159,2.8745437,2756.1,2755.4,0.38418122]
[1643789355402,1.0,2756.0,2755.4,0.38418122]
[1643789355601,2.8745437,2756.1,2755.4,0.38418122]
[1643789356202,0.850085,2756.1,2755.5,1.78010439]
[1643789356409,0.1814,2756.1,2755.5,1.78010439]
[1643789356605,0.1814,2756.5,2755.6,0.1814]
[1643789356809,0.1814,2756.6,2755.6,0.1814]
[1643789357009,0.1814,2756.6,2755.7,1.81417]
[1643789357216,7.6514,2756.7,2756.3,0.7365339]
[1643789357410,7.6514,2756.7,2756.3,1.8822339]
[1643789357411,7.47,2756.7,2756.3,1.8822339]
[1643789357610,7.47,2756.7,2756.3,2.1822339]
[1643789357810,7.47,2756.7,2756.4,0.1812]
[1643789358009,1.91753171,2757.2,2756.4,0.1812]
[1643789358208,0.1812,2757.1,2756.4,0.1812]
[1643789358409,0.1812,2757.2,2756.9,0.90681]
[1643789358809,0.1812,2757.2,2756.9,1.20681]
[1643789359265,0.1812,2757.2,2756.9,0.3]
[1643789359465,2.0,2757.2,2756.6,1.20685]
[1643789359774,2.0,2757.2,2756.4,1.99491]
[1643789359775,2.0,2757.2,2756.4,0.1812]
[1643789359776,1.53546869,2757.1,2756.4,0.1812]
[1643789359972,1.53546869,2757.1,2755.7,7.2112]
[1643789359973,0.68558369,2756.9,2755.8,0.1812]
[1643789360171,2.7042,2756.8,2755.8,0.1812]
[1643789360366,2.7042,2756.8,2755.7,7.2112]
[1643789360367,2.7042,2756.8,2755.7,3.9515]
[1643789360572,1.0,2756.7,2755.7,3.9515]
[1643789360769,0.7044,2756.6,2756.1,0.4372416]
[1643789361169,0.145685,2756.5,2755.7,3.9515]
[1643789361372,0.7044,2756.4,2755.7,3.9515]
[1643789361772,0.7044,2756.4,2755.8,0.90715]
[1643789361972,0.523,2756.4,2755.8,0.90715]
[1643789362172,0.523,2756.4,2756.1,0.77246933]
[1643789362378,0.523,2756.4,2756.2,0.31537427]
[1643789363011,0.523,2756.4,2756.2,1.52239427]
[1643789363209,0.523,2756.4,2756.3,0.3]
[1643789364811,0.7042,2756.8,2756.3,0.3]
[1643789365816,0.7042,2756.8,2756.3,1.03436713]
[1643789367255,0.523,2756.8,2756.3,1.03436713]
[1643789369058,0.487465,2756.8,2756.3,0.3]
[1643789371908,0.487465,2756.8,2756.4,0.00851787]
[1643789372106,0.487465,2756.8,2756.3,0.3]
[1643789374454,0.487465,2756.8,2755.5,3.885269]
[1643789374455,1.45654697,2756.1,2755.5,3.885269]
[1643789374654,6.65,2756.6,2755.5,0.145169]
[1643789374655,0.523,2756.0,2755.5,0.145169]
[1643789374952,0.145685,2756.3,2755.5,0.145169]
[1643789374953,0.523,2755.9,2755.5,0.145169]
[1643789375151,0.145685,2756.3,2755.5,0.145169]
[1643789375152,0.523,2755.8,2755.5,0.145169]
[1643789375353,0.1814,2756.2,2755.5,0.145169]
[1643789375354,0.523,2755.7,2755.5,0.84701348]
[1643789375753,0.523,2756.0,2755.5,0.84701348]
[1643789376153,0.523,2756.0,2755.5,1.14701348]
[1643789376353,0.523,2756.0,2755.5,0.145169]
[1643789376966,0.523,2756.0,2755.4,0.4814]
[1643789377357,0.523,2756.0,2755.4,0.7814]
[1643789378014,0.523,2756.0,2755.4,0.4814]
[1643789378220,2.07850942,2755.9,2755.4,0.4814]
[1643789378415,2.07850942,2755.9,2755.2,3.9387]
[1643789378416,0.523,2755.8,2755.3,0.1814]
[1643789378618,0.523,2755.8,2755.2,4.2387]
[1643789378619,0.523,2755.8,2755.2,0.4814]
[1643789378814,0.523,2755.8,2755.1,0.4814]
[1643789379014,0.523,2755.8,2755.1,0.1814]
[1643789379414,0.523,2755.8,2755.1,0.326591]
[1643789379616,0.523,2755.8,2755.2,0.43132863]
[1643789380417,0.523,2755.8,2755.2,0.73132863]
[1643789380617,0.523,2755.8,2755.2,0.43132863]
[1643789382063,0.523,2755.8,2755.2,1.33857863]
[1643789382466,0.523,2755.8,2755.3,0.1814]
[1643789382963,0.523,2755.8,2755.3,1.08866]
[1643789384266,0.523,2755.8,2755.4,0.00286275]
[1643789387310,0.474746,2755.8,2755.4,0.00286275]
[1643789389555,0.474746,2755.8,2755.3,1.09094306]
[1643789391860,0.474746,2755.8,2755.7,0.41105478]
[1643789392919,7.7366,2756.6,2755.7,0.41105478]
[1643789392920,0.145685,2756.4,2755.7,0.41105478]
[1643789393121,0.1814,2756.5,2755.8,0.1814]
[1643789393319,1.53517743,2756.4,2755.8,1.99534]
[1643789393518,0.523,2756.9,2755.8,1.99534]
[1643789393519,0.7042,2756.9,2755.8,1.99534]
[1643789393725,1.5351317,2756.8,2756.2,0.74086843]
[1643789393920,1.5351317,2756.8,2756.3,0.90697]
[1643789394120,1.5351317,2756.8,2756.3,1.20697]
[1643789394320,1.5351317,2756.8,2756.7,0.44718416]
[1643789394523,1.5351317,2756.9,2756.3,1.0150998]
[1643789394723,1.5351317,2756.9,2756.3,0.3]
[1643789394926,1.5351317,2756.9,2756.4,0.1812]
[1643789395121,1.5351317,2756.8,2756.5,0.90691]
[1643789395319,4.5288,2757.3,2756.4,0.1813]
[1643789395320,0.1812,2757.3,2756.4,0.1813]
[1643789395522,1.53496066,2757.2,2756.1,0.89438946]
[1643789395719,1.53496066,2757.2,2756.9,0.44795864]
[1643789395924,1.53496066,2757.2,2756.9,0.38549031]
[1643789396120,1.53496066,2757.2,2756.3,0.3]
[1643789396326,1.53496066,2757.2,2757.0,0.43252446]
[1643789396522,1.53496066,2757.2,2756.4,0.1813]
[1643789396763,1.53496066,2757.2,2757.0,0.44054155]
[1643789396962,1.53496066,2757.2,2756.5,0.90691]
[1643789397159,1.53496066,2757.2,2757.0,0.44466588]
[1643789397358,1.53496066,2757.2,2756.6,0.3]
[1643789397558,1.53496066,2757.2,2756.5,1.71934382]
[1643789399162,1.53496066,2757.2,2757.1,0.42620628]
[1643789399362,1.53496066,2757.2,2756.6,0.3]
[1643789399564,1.53496066,2757.2,2756.7,0.36712753]
[1643789400267,1.53496066,2757.2,2756.5,1.71934382]
[1643789400268,2.03327922,2757.1,2756.4,0.1813]
[1643789400511,2.03327922,2757.1,2755.8,1.81394]
[1643789400512,2.74354435,2757.0,2755.8,1.81394]
[1643789400712,5.08956418,2756.9,2755.8,1.81394]
[1643789400906,5.08956418,2756.9,2755.7,1.81415]
[1643789400907,2.05796066,2756.8,2755.7,1.81415]
[1643789401112,4.0621318,2756.7,2755.7,1.81415]
[1643789401310,3.05796066,2756.6,2755.7,1.81415]
[1643789401623,3.88504808,2756.5,2755.9,0.43782864]
[1643789401812,2.53496066,2756.4,2755.7,1.81415]
[1643789402012,3.53080882,2756.3,2755.7,1.81415]
[1643789402214,1.53496066,2756.2,2755.7,1.81415]
[1643789402410,0.850085,2756.5,2755.7,1.81415]
[1643789402612,1.53531453,2756.4,2755.7,2.11415]
[1643789402811,0.145685,2756.3,2755.7,1.81415]
[1643789403012,0.145685,2756.3,2755.3,7.9804]
[1643789403013,0.44616428,2756.0,2755.4,1.31702121]
[1643789403211,0.523,2755.9,2755.4,0.90726]
[1643789403412,2.43568628,2755.9,2755.4,0.90726]
[1643789403611,0.523,2755.9,2755.4,0.90726]
[1643789403813,2.46787881,2755.9,2755.4,1.052444]
[1643789404261,0.523,2755.9,2755.4,0.145184]
[1643789404656,0.523,2755.9,2755.4,1.959504]
[1643789404858,0.523,2755.9,2755.5,0.3]
[1643789405457,0.523,2755.9,2755.5,0.69060955]
[1643789405658,0.523,2755.9,2755.5,0.3]
[1643789405858,0.523,2755.9,2755.4,0.145184]
[1643789406872,0.523,2755.9,2755.4,0.47623122]
[1643789407067,0.523,2755.9,2755.4,0.145184]
[1643789409102,0.523,2755.9,2755.2,0.92485688]
[1643789409308,0.523,2755.9,2755.6,0.00285383]
[1643789414260,0.523,2755.9,2755.2,0.92770179]
[1643789414765,0.523,2755.9,2755.2,0.37770179]
[1643789418026,0.523,2755.9,2755.2,0.00284491]
[1643789418226,0.145685,2755.8,2755.2,0.00284491]
[1643789418429,0.523,2755.7,2755.2,0.00284491]
[1643789419463,0.523,2755.7,2754.8,3.81216275]
[1643789419664,0.38462235,2755.4,2754.8,4.55498127]
[1643789419974,0.523,2755.3,2754.8,4.55498127]
[1643789420164,0.523,2755.3,2754.8,0.74568127]
[1643789420363,0.523,2755.3,2754.8,0.44568127]
[1643789421167,0.38943072,2755.5,2754.8,0.44568127]
[1643789421671,0.668685,2755.6,2754.8,0.44568127]
[1643789424413,0.668685,2755.6,2755.0,0.0028806]
[1643789425914,0.668685,2755.6,2755.4,0.34487715]
[1643789426116,0.523,2755.6,2755.4,0.34487715]
[1643789426320,0.1814,2755.9,2755.4,1.26261268]
[1643789426514,0.145685,2756.0,2755.5,0.00963858]
[1643789426773,0.145685,2756.0,2755.5,0.30963858]
[1643789426972,0.1814,2756.1,2755.5,0.30963858]
[1643789427173,0.1814,2756.3,2755.7,0.90701]
[1643789427377,0.668685,2757.0,2755.7,0.90701]
[1643789427378,0.1814,2756.8,2755.8,0.01150179]
[1643789427575,1.53516145,2756.7,2755.8,0.01150179]
[1643789427780,2.23956145,2756.7,2755.6,2.81821416]
[1643789427977,1.53516145,2756.6,2755.6,2.81821416]
[1643789428177,0.1814,2756.5,2755.6,2.81821416]
[1643789428479,1.53516145,2756.4,2755.6,2.81821416]
[1643789428873,1.53516145,2756.3,2755.6,2.81821416]
[1643789429074,0.1814,2756.6,2755.6,2.81821416]
[1643789429284,1.5352665,2756.5,2755.7,0.00284937]
[1643789429479,0.1814,2756.4,2755.7,0.00284937]
[1643789429677,1.5352665,2756.3,2755.7,0.00284937]
[1643789429977,1.5352665,2756.3,2756.0,0.44469864]
[1643789430177,0.1814,2756.6,2755.8,1.81387]
[1643789430420,1.53529819,2756.5,2755.8,1.81387]
[1643789430616,0.1814,2756.4,2755.8,1.81387]
[1643789430816,1.53529819,2756.3,2755.9,0.3]
[1643789431017,1.53529819,2756.3,2755.8,1.959034]
[1643789431220,2.10801448,2756.5,2755.8,0.145164]
[1643789431221,0.38627533,2756.1,2755.8,0.145164]
[1643789431420,0.145685,2755.9,2755.7,0.00284937]
[1643789431617,0.668685,2755.9,2755.7,0.00284937]
[1643789432722,1.68120014,2755.8,2755.7,0.00284937]
[1643789433622,0.145685,2755.8,2755.7,0.00284937]
[1643789434169,0.145685,2755.8,2755.4,2.06731491]
[1643789434359,0.145685,2755.8,2755.4,1.81731491]
[1643789434559,0.145685,2755.8,2755.4,2.18431145]
[1643789434761,0.145685,2755.8,2755.5,0.3]
[1643789435675,0.1814,2756.1,2755.7,0.00931158]
[1643789435867,0.668685,2756.7,2755.7,2.1142]
[1643789435868,0.1814,2756.6,2755.7,2.1142]
[1643789436069,1.53530365,2756.5,2755.7,2.1142]
[1643789436467,1.53530365,2756.5,2755.8,0.69626309]
[1643789436668,1.53530365,2756.5,2756.0,0.38912662]
[1643789437069,0.145685,2756.4,2755.9,0.9071]
[1643789437270,1.56507316,2756.6,2755.9,1.2071]
[1643789437271,1.53530365,2756.3,2755.9,1.2071]
[1643789437467,0.71075816,2756.6,2755.9,1.2071]
[1643789437468,1.53530365,2756.2,2755.9,1.2071]
[1643789437668,1.71075816,2756.6,2755.9,1.2071]
[1643789437907,1.53533562,2756.5,2755.9,1.2071]
[1643789438105,0.1814,2756.4,2755.9,1.2071]
[1643789438310,1.53533562,2756.3,2755.9,1.2071]
[1643789438708,1.53533562,2756.2,2755.9,1.2071]
[1643789438912,0.1814,2756.5,2756.0,0.34889998]
[1643789439118,1.53529818,2756.4,2756.0,0.34889998]
[1643789439313,1.53529818,2756.4,2756.0,0.35173597]
[1643789440215,1.53529818,2756.4,2756.0,0.00283599]
[1643789441114,0.523,2756.3,2756.0,0.00283599]
[1643789441316,1.53529818,2756.2,2756.0,0.00283599]
[1643789442069,1.92906841,2756.1,2756.0,0.00283599]
[1643789442265,3.43929203,2756.1,2756.0,0.00283599]
[1643789442466,3.96229203,2756.1,2756.0,0.00283599]
[1643789442668,2.05829818,2756.1,2756.0,0.00283599]
[1643789444369,2.05829818,2756.1,2755.8,0.90717]
[1643789444568,2.05829818,2756.1,2755.9,0.3]
[1643789444569,1.53529818,2756.0,2755.9,0.3]
[1643789444968,1.53529818,2756.3,2755.9,0.3]
[1643789446020,1.53421556,2756.3,2755.9,0.3]
[1643789447817,1.53421556,2756.3,2755.8,0.90717]
[1643789448020,1.53421556,2756.3,2755.6,1.20725]
[1643789448218,3.45358299,2756.3,2755.7,0.3]
[1643789448419,0.96339062,2756.4,2755.7,0.3]
[1643789449029,0.96339062,2756.4,2755.7,0.6393751]
[1643789449256,0.96339062,2756.4,2756.1,0.00283153]
[1643789449456,0.523,2756.4,2756.1,0.00283153]
[1643789450460,0.145685,2756.2,2756.1,0.00283153]
[1643789450858,1.30703254,2756.3,2756.1,0.00283153]
[1643789451264,0.523,2756.2,2756.1,0.00283153]
[1643789454115,0.523,2756.2,2755.7,1.21004153]
[1643789459361,0.1814,2756.6,2756.0,0.90701]
[1643789459563,0.1812,2756.8,2756.0,0.90599039]
[1643789459863,0.1812,2756.8,2756.1,0.31108831]
[1643789460063,0.1812,2756.9,2756.7,0.40501758]
[1643789460262,0.1812,2756.9,2755.9,0.0125484]
[1643789460263,0.1812,2756.9,2756.2,0.90694]
[1643789460509,0.145685,2756.8,2756.1,1.81386]
[1643789460711,1.9448713,2756.8,2756.1,2.11386]
[1643789460909,1.20858369,2756.9,2756.1,2.11386]
[1643789461109,1.38978369,2756.9,2756.1,2.11386]
[1643789461513,2.68978369,2756.9,2756.1,2.11386]
[1643789461721,2.68978369,2756.9,2756.0,1.81408]
[1643789461722,1.52406815,2756.6,2756.0,1.81408]
[1643789461916,1.52406815,2756.6,2755.9,0.00284045]
[1643789461917,2.56779124,2756.5,2755.9,0.00284045]
[1643789462115,2.86779124,2756.5,2755.9,0.00284045]
[1643789462720,2.86779124,2756.5,2755.9,0.30284045]
[1643789463115,0.9072005,2756.4,2755.9,0.30284045]
[1643789463314,2.66229618,2756.3,2755.9,0.30284045]
[1643789463713,2.66229618,2756.3,2755.9,0.00284045]
[1643789464367,0.523,2756.3,2756.1,0.01]
[1643789464662,0.145685,2756.2,2756.1,0.01]
[1643789464863,0.668685,2756.2,2756.1,0.01]
[1643789466068,2.20408743,2756.2,2756.1,0.01]
[1643789468116,2.18398743,2756.2,2756.1,0.01]
[1643789468524,1.53540243,2756.2,2756.1,0.01]
[1643789468719,0.1814,2756.7,2756.1,0.01]
[1643789468918,1.53507564,2756.6,2756.1,0.01]
[1643789469120,1.53507564,2756.5,2756.1,0.01]
[1643789469321,2.22065933,2757.0,2756.1,0.01198246]
[1643789469626,0.1812,2757.1,2756.4,0.90698]
[1643789469627,1.53507564,2756.9,2756.4,0.90698]
[1643789469820,1.53507564,2756.8,2756.4,0.90698]
[1643789470020,1.53507564,2757.0,2756.4,0.90698]
[1643789470223,1.53507564,2756.9,2756.4,0.90698]
[1643789470424,2.44205134,2756.9,2756.4,0.90698]
[1643789470626,1.53507564,2756.8,2756.4,0.90698]
[1643789472368,1.53507564,2756.8,2756.3,2.11391]
[1643789472568,0.9070479,2756.7,2756.3,2.11391]
[1643789472771,1.53507564,2756.6,2756.3,2.11391]
[1643789473568,1.53507564,2756.6,2756.3,2.51994623]
[1643789474972,1.53507564,2756.5,2756.3,2.51994623]
[1643789475174,1.18136,2757.1,2756.3,2.51994623]
[1643789475175,0.18136,2757.1,2756.3,3.42683623]
[1643789475408,1.53495268,2757.0,2756.3,3.42683623]
[1643789476009,0.523,2757.2,2756.3,3.42683623]
[1643789476010,1.53495268,2756.9,2756.6,1.74510875]
[1643789476211,1.53495268,2756.8,2756.7,0.3]
[1643789476410,0.32135982,2756.9,2756.7,0.3]
[1643789476608,1.53495268,2756.8,2756.7,0.3]
[1643789476812,1.53495268,2757.0,2756.7,0.3]
[1643789477019,1.53495268,2756.9,2756.7,0.3]
[1643789477213,1.53495268,2757.1,2756.6,0.3]
[1643789477419,1.53495268,2757.0,2756.6,0.3]
[1643789477615,3.34899268,2757.0,2756.3,0.90704]
[1643789477814,0.34917533,2756.7,2756.4,0.3]
[1643789478015,1.53495268,2756.6,2756.4,0.3]
[1643789478217,1.53495268,2756.5,2756.1,2.53937157]
[1643789478415,1.81404,2757.0,2756.1,2.53937157]
[1643789478615,2.1171375,2757.1,2756.1,2.53937157]
[1643789478616,1.53502208,2756.9,2756.4,0.90701]
[1643789478818,1.53227016,2756.8,2756.4,1.20701]
[1643789479016,1.0881298,2757.1,2756.4,1.20701]
[1643789479260,0.3987032,2757.0,2756.4,1.20701]
[1643789479459,0.3987032,2757.0,2756.8,0.00196165]
[1643789480460,0.3987032,2757.0,2756.4,0.90701]
[1643789480660,0.9069788,2756.9,2756.4,0.90701]
[1643789480959,1.4299788,2756.9,2756.4,0.90701]
[1643789481765,0.523,2756.9,2756.4,1.20463855]
[1643789482167,0.523,2756.9,2756.4,1.50463855]
[1643789483110,0.523,2756.9,2756.4,1.15701]
[1643789483411,1.4299549,2756.9,2756.4,0.3]
[1643789484214,1.4299549,2756.9,2756.5,0.90702]
[1643789484715,0.523,2756.9,2756.4,0.3]
[1643789484917,0.523,2756.9,2756.3,0.3]
[1643789485120,0.523,2756.9,2756.6,0.90696]
[1643789485715,0.523,2756.9,2756.7,0.3]
[1643789488865,0.523,2756.9,2756.6,0.90696]
[1643789489367,0.523,2756.9,2756.8,0.00226659]
[1643789490409,0.70436,2756.9,2756.8,0.00226659]
[1643789492727,2.90634321,2756.9,2756.8,0.00226659]
[1643789492918,15.3591269,2756.9,2756.8,0.00226659]
[1643789493116,11.3091269,2756.9,2756.8,0.00226659]
[1643789494161,11.3091269,2756.9,2756.1,0.01226659]
[1643789494362,0.907116,2756.7,2756.1,0.01226659]
[1643789494561,0.523,2756.6,2756.1,0.01226659]
[1643789495368,0.33108002,2756.4,2756.1,0.01226659]
[1643789495563,0.523,2756.3,2756.1,0.01226659]
[1643789496164,0.523,2756.3,2756.1,0.91935659]
[1643789496365,0.523,2756.7,2756.1,1.21935659]
[1643789496771,0.523,2756.7,2756.3,0.35419111]
[1643789497167,0.523,2756.7,2756.1,1.21935659]
[1643789497766,0.523,2756.7,2756.3,0.90694]
[1643789498207,0.523,2756.7,2756.4,0.3]
[1643789498807,0.523,2756.7,2756.3,0.3]
[1643789499009,1.53510114,2756.6,2756.3,0.3]
[1643789499207,1.53510114,2756.6,2756.3,0.30228442]
[1643789499807,1.53510114,2756.6,2756.4,0.907]
[1643789503867,0.36256,2757.0,2756.4,0.907]
[1643789503868,1.53510114,2756.5,2756.4,0.907]
[1643789504069,0.35304308,2756.5,2756.4,0.907]
[1643789504269,1.88814422,2756.5,2756.4,0.907]
[1643789504469,1.53510114,2756.5,2756.4,0.907]
[1643789504968,0.18136,2756.8,2756.4,0.907]
[1643789504969,2.05810114,2756.7,2756.4,0.907]
[1643789505170,1.53510114,2756.6,2756.4,0.907]
[1643789505427,1.53510114,2756.6,2756.4,1.207]
[1643789505627,1.53510114,2756.8,2756.4,1.207]
[1643789505834,1.53497792,2756.7,2756.4,1.207]
[1643789506025,1.53497792,2756.6,2756.4,1.207]
[1643789506224,0.86678369,2757.3,2756.4,1.207]
[1643789506425,1.53494732,2757.2,2756.4,1.207]
[1643789506624,1.53494732,2757.2,2756.6,0.35184429]
[1643789506625,1.95743056,2757.2,2756.6,0.35184429]
[1643789506831,1.53494732,2757.1,2756.7,1.8136]
[1643789507230,1.53494732,2757.1,2756.7,2.1136]
[1643789507431,1.53494732,2757.0,2756.7,2.1136]
[1643789507631,1.53494732,2756.9,2756.7,1.2068]
[1643789507833,0.523,2757.1,2756.7,0.9068]
[1643789507834,1.53494732,2756.8,2756.7,0.9068]
[1643789508033,1.53494732,2757.0,2756.6,1.81359]
[1643789508231,1.88556,2757.1,2756.6,1.81359]
[1643789508232,1.53494732,2756.9,2756.6,1.81359]
[1643789508437,2.05794732,2756.8,2756.6,1.81359]
[1643789508632,0.523,2756.7,2756.6,1.81359]
[1643789509033,2.05802105,2756.7,2756.6,1.81359]
[1643789509261,2.05802105,2756.7,2756.6,1.81586373]
[1643789510862,2.05719974,2756.7,2756.6,1.81586373]
[1643789511662,1.53502105,2756.7,2756.6,1.81586373]
[1643789512066,1.53502105,2756.9,2756.6,1.81586373]
[1643789512267,1.53502105,2756.8,2756.6,2.72275373]
[1643789512467,1.53502105,2756.7,2756.6,2.72275373]
[1643789512912,0.70436,2757.1,2756.6,2.72275373]
[1643789512913,1.53502105,2757.0,2756.6,2.72275373]
[1643789513911,1.53502105,2757.0,2756.7,1.29743197]
[1643789514511,1.53502105,2757.0,2756.7,2.20427197]
[1643789515614,1.53502105,2757.0,2756.7,1.81371]
[1643789516659,1.53502105,2757.0,2756.7,0.90687]
[1643789518466,1.53502105,2757.0,2756.7,1.81371]
[1643789519467,1.53502105,2757.0,2756.9,0.00226303]
[1643789519666,1.53502105,2757.0,2756.7,0.90684]
[1643789519867,1.53502105,2757.0,2756.7,1.81367]
[1643789520710,1.53502105,2757.0,2756.7,0.90683]
[1643789521416,1.53502105,2757.0,2756.6,1.81359]
[1643789521610,3.46220551,2757.0,2756.6,1.81359]
[1643789521814,1.53502105,2756.9,2756.6,1.81359]